bitfinex/quotes_ETHUSD_20250909
["timestamp","ask_amount","ask_price","bid_price","bid_amount"]
[1757441440245,5.664,4287.1,4287.0,2.44863354]
[1757441441716,5.664,4287.1,4287.0,0.116]
[1757441442315,7.432,4287.1,4286.8,0.027]
[1757441442521,3.27227101,4287.0,4286.8,0.027]
[1757441442831,3.874,4286.9,4286.8,0.027]
[1757441443033,4.138,4286.9,4286.8,0.027]
[1757441443208,6.93478795,4286.9,4286.8,0.027]
[1757441443535,8.14450928,4286.9,4286.8,0.027]
[1757441443735,5.81182133,4286.9,4286.8,0.027]
[1757441443938,5.34772133,4286.9,4286.8,0.027]
[1757441444103,8.61800928,4286.9,4286.8,0.027]
[1757441444303,11.61800928,4286.9,4286.8,0.027]
[1757441444502,12.12036465,4286.9,4286.8,0.027]
[1757441444739,12.33840275,4286.9,4286.8,0.027]
[1757441449410,12.33805134,4286.9,4286.8,0.027]
[1757441449605,4.52645134,4286.9,4286.8,0.027]
[1757441449937,3.874,4286.9,4286.8,0.325]
[1757441450108,6.47268795,4286.9,4286.8,0.027]
[1757441453375,6.20668795,4286.9,4286.8,0.027]
[1757441453681,7.95161537,4286.9,4286.8,0.027]
[1757441454576,5.61892742,4286.9,4286.8,0.027]
[1757441454755,3.874,4286.9,4286.8,0.325]
[1757441455164,1.79,4287.1,4286.8,1.246]
[1757441455471,0.116,4286.9,4286.8,0.325]
[1757441456283,0.116,4286.9,4286.8,1.246]
[1757441457077,2.71068795,4286.9,4286.8,0.027]
[1757441457377,1.44882146,4286.9,4286.8,0.027]
[1757441457746,0.378,4286.9,4286.8,0.027]
[1757441460159,2.71068795,4286.9,4286.8,0.027]
[1757441460771,3.17678795,4286.9,4286.8,0.027]
[1757441461089,2.71068795,4286.9,4286.8,0.027]
[1757441462991,0.116,4286.9,4286.8,0.027]
[1757441463197,3.875,4287.0,4286.8,0.7997]
[1757441463404,3.875,4287.0,4286.8,1.2573]
[1757441463405,3.991,4287.0,4286.8,1.2573]
[1757441463561,3.991,4287.0,4286.9,0.9201]
[1757441463762,3.991,4287.0,4286.9,1.2303]
[1757441464597,3.991,4287.0,4286.9,0.7727]
[1757441466698,6.32363354,4287.0,4286.9,0.7727]
[1757441466860,6.32363354,4287.0,4286.9,0.3102]
[1757441467060,6.32363354,4287.0,4286.8,0.027]
[1757441468806,2.33268795,4286.9,4286.8,0.027]
[1757441469010,6.53418795,4286.9,4286.8,0.027]
[1757441469388,6.751938,4286.9,4286.8,0.027]
[1757441469907,6.53418795,4286.9,4286.8,0.027]
[1757441470108,6.75193484,4286.9,4286.8,0.027]
[1757441470414,10.31365634,4286.9,4286.8,1e-08]
[1757441473683,3.12506891,4286.2,4286.1,1e-08]
[1757441473990,14.55466094,4286.2,4286.1,1e-08]
[1757441474195,16.47562136,4286.2,4286.1,1e-08]
[1757441474419,17.10228811,4286.2,4286.1,1e-08]
[1757441474604,16.47562136,4286.2,4286.1,1e-08]
[1757441475393,17.1018612,4286.2,4286.1,1e-08]
[1757441476283,16.47562136,4286.2,4286.1,1e-08]
[1757441476883,14.01962136,4286.2,4286.1,1e-08]
[1757441479100,3.12534111,4285.7,4285.3,0.002]
[1757441479331,14.37507837,4285.7,4285.3,0.002]
[1757441479525,15.57657837,4285.7,4285.3,0.002]
[1757441479831,14.66827837,4285.7,4285.3,0.002]
[1757441480211,15.10357837,4285.7,4285.3,0.002]
[1757441480410,16.84725943,4285.7,4285.3,0.002]
[1757441481331,16.41195943,4285.7,4285.3,0.002]
[1757441481494,4.07702217,4285.7,4285.3,0.002]
[1757441481698,6.21234111,4285.7,4285.3,0.4596]
[1757441481893,13.87437837,4285.7,4285.3,0.4596]
[1757441482193,14.05021848,4285.7,4285.3,0.002]
[1757441482397,10.17121848,4285.7,4285.3,0.002]
[1757441482594,14.04921848,4285.7,4285.3,0.002]
[1757441482806,15.98746355,4285.7,4285.3,0.002]
[1757441483808,19.77946355,4285.7,4285.3,0.002]
[1757441484119,21.40719041,4285.7,4285.3,0.002]
[1757441486212,28.52719041,4285.7,4285.3,0.002]
[1757441487153,30.98319041,4285.7,4285.3,0.002]
[1757441489250,30.98267822,4285.7,4285.3,0.002]
[1757441489962,30.54447822,4285.7,4285.3,0.002]
[1757441490267,30.98267822,4285.7,4285.3,0.002]
[1757441493053,30.07147822,4285.7,4285.3,0.002]
[1757441494585,25.29114418,4284.6,4284.5,0.2915]
[1757441497048,28.00774418,4284.6,4284.5,0.002]
[1757441497242,27.74714418,4284.6,4284.5,0.2915]
[1757441498281,28.50838696,4284.6,4284.5,0.002]
[1757441498468,26.05238696,4284.6,4284.5,0.002]
[1757441499104,2.33415806,4284.2,4284.1,0.04]
[1757441499282,17.49289532,4284.2,4284.1,0.04]
[1757441499580,18.47301284,4284.2,4284.1,0.04]
[1757441499744,18.93331284,4284.2,4284.1,0.04]
[1757441499946,20.87155791,4284.2,4284.1,0.04]
[1757441500191,15.45517787,4284.2,4284.1,0.04]
[1757441500394,19.91061513,4284.2,4284.1,0.04]
[1757441500686,22.36661513,4284.2,4284.1,0.04]
[1757441501265,2.33432152,4283.9,4283.8,0.027]
[1757441501557,9.54798442,4283.9,4283.8,0.027]
[1757441501747,9.54798442,4283.9,4283.8,0.3165]
[1757441502070,9.54798442,4283.9,4283.8,1.2273]
[1757441504177,5.66398442,4283.9,4283.8,1.2273]
[1757441504374,9.54798442,4283.9,4283.8,1.2273]
[1757441504752,5.66398442,4283.9,4283.8,1.2273]
[1757441504954,9.21832152,4283.9,4283.8,1.2273]
[1757441507598,5.33432152,4283.9,4283.8,1.2273]
[1757441507758,9.21832152,4283.9,4283.8,1.2273]
[1757441508616,7.12,4284.3,4283.8,1.2273]
[1757441508758,7.393,4284.6,4283.8,0.67287801]
[1757441508759,0.116,4283.9,4283.8,0.67287801]
[1757441508962,3.885,4283.9,4283.8,2.65086022]
[1757441509492,3.885,4283.9,4283.8,3.56166022]
[1757441512292,7.393,4284.6,4283.8,1.2273]
[1757441512456,7.393,4284.6,4283.9,1.11742198]
[1757441512657,7.393,4284.6,4284.3,2.33409428]
[1757441512658,3.884,4284.5,4284.3,2.33409428]
[1757441512893,3.884,4284.5,4284.4,0.9108]
[1757441513090,3.884,4284.5,4284.4,1.2003]
[1757441513757,1.792,4284.6,4284.5,2.33399463]
[1757441513962,5.677,4284.6,4284.5,3.65432463]
[1757441514258,1.792,4284.6,4284.5,3.65432463]
[1757441514492,5.677,4284.6,4284.5,3.65432463]
[1757441517116,5.677,4284.6,4284.5,1.2003]
[1757441517426,5.677,4284.6,4284.5,3.53429463]
[1757441518687,5.677,4284.6,4284.5,1.2003]
[1757441518887,5.678,4284.6,4284.5,1.2003]
[1757441519094,5.678,4284.6,4284.5,0.2895]
[1757441519277,5.678,4284.6,4284.5,0.7327]
[1757441521694,6.4387,4284.6,4283.8,0.027]
[1757441522010,2.45032152,4283.9,4283.8,0.027]
[1757441522206,6.33632152,4283.9,4283.8,0.027]
[1757441523125,4.002,4283.9,4283.8,0.3342]
[1757441523615,6.62472152,4283.9,4283.8,0.027]
[1757441523837,7.99291624,4283.9,4283.8,0.027]
[1757441524125,8.43291624,4283.9,4283.8,0.027]
[1757441524633,1.01189472,4283.9,4283.8,0.3342]
[1757441524787,3.886,4283.9,4283.8,0.767]
[1757441525508,6.22032152,4283.9,4283.8,0.767]
[1757441525686,3.886,4283.9,4283.8,0.767]
[1757441525882,6.22032152,4283.9,4283.8,0.767]
[1757441526117,6.22032152,4283.9,4283.8,0.3342]
[1757441526322,3.886,4283.9,4283.8,0.3342]
[1757441526620,6.22032152,4283.9,4283.8,0.3342]
[1757441526932,6.50232152,4283.9,4283.8,0.027]
[1757441527112,8.27637563,4283.9,4283.8,0.027]
[1757441527899,7.07577563,4283.9,4283.8,0.027]
[1757441528623,7.35937563,4283.9,4283.8,0.027]
[1757441531295,8.27637563,4283.9,4283.8,0.027]
[1757441531917,7.83167563,4283.9,4283.8,0.027]
[1757441534832,3.887,4283.9,4283.8,0.3342]
[1757441534997,3.887,4283.9,4283.8,1.2632]
[1757441535719,6.22132152,4283.9,4283.8,0.767]
[1757441536339,3.887,4283.9,4283.8,0.767]
[1757441536503,6.22132152,4283.9,4283.8,0.767]
[1757441536836,7.35887511,4283.9,4283.8,0.027]
[1757441536998,7.83117511,4283.9,4283.8,0.027]
[1757441537529,7.35887511,4283.9,4283.8,0.027]
[1757441538133,7.07687511,4283.9,4283.8,0.027]
[1757441538833,7.07687511,4283.9,4283.8,0.767]
[1757441538834,3.887,4283.9,4283.8,0.767]
[1757441539343,6.22132152,4283.9,4283.8,0.767]
[1757441540225,6.22132152,4283.9,4283.8,0.3342]
[1757441540555,6.22132152,4283.9,4283.8,0.027]
[1757441540727,7.83117518,4283.9,4283.8,0.027]
[1757441540922,7.07687518,4283.9,4283.8,0.027]
[1757441542249,4.74155366,4283.9,4283.8,0.767]
[1757441542423,6.50232152,4283.9,4283.8,0.027]
[1757441542761,6.22032152,4283.9,4283.8,0.027]
[1757441543412,6.22032152,4283.9,4283.8,0.3342]
[1757441544937,6.50232152,4283.9,4283.8,0.027]
[1757441545137,8.15827699,4283.9,4283.8,0.027]
[1757441546435,8.60457699,4283.9,4283.8,0.027]
[1757441547481,8.15827699,4283.9,4283.8,0.027]
[1757441547843,7.68597699,4283.9,4283.8,0.027]
[1757441548571,11.60457699,4283.9,4283.8,0.027]
[1757441548958,11.82251899,4283.9,4283.8,0.027]
[1757441553444,11.82251899,4283.9,4283.8,1e-08]
[1757441553445,19.73451899,4283.9,4283.8,1e-08]
[1757441553650,22.19051899,4283.9,4283.8,1e-08]
[1757441555806,22.69267441,4283.9,4283.8,1e-08]
[1757441557286,24.09367441,4283.9,4283.8,1e-08]
[1757441561230,23.36537441,4283.9,4283.8,1e-08]
[1757441561389,19.78597441,4283.9,4283.8,1e-08]
[1757441561595,23.67097441,4283.9,4283.8,1e-08]
[1757441562247,24.09297441,4283.9,4283.8,1e-08]
[1757441563709,24.09263363,4283.9,4283.8,1e-08]
[1757441565209,24.20616493,4283.9,4283.8,1e-08]
[1757441565939,24.20616945,4283.9,4283.8,1e-08]
[1757441567130,24.09263815,4283.9,4283.8,1e-08]
[1757441568833,23.67063815,4283.9,4283.8,1e-08]
[1757441569845,24.09263815,4283.9,4283.8,1e-08]
[1757441570766,24.09263815,4283.9,4283.8,0.00200001]
[1757441571064,24.09363815,4283.9,4283.8,0.00200001]
[1757441571361,23.67163815,4283.9,4283.8,0.00200001]
[1757441572995,23.19933815,4283.9,4283.8,0.00200001]
[1757441573242,4.52775753,4283.1,4282.4,0.4676]
[1757441573371,17.30736327,4283.1,4282.0,0.4676]
[1757441573685,9.19186656,4282.9,4282.0,0.4676]
[1757441573869,2.33524823,4282.2,4282.0,0.4676]
[1757441574074,14.33489068,4282.2,4282.0,0.4676]
[1757441574389,17.33489068,4282.2,4282.1,0.3515]
[1757441574980,17.33489068,4282.2,4282.1,0.8191]
[1757441575565,17.33489068,4282.2,4282.1,1.286]
[1757441576860,12.91003514,4282.2,4282.1,1.286]
[1757441577060,13.79903514,4282.2,4282.1,1.286]
[1757441577361,11.287,4282.2,4282.1,1.286]
[1757441577579,13.62224823,4282.2,4282.1,1.286]
[1757441578390,11.287,4282.2,4282.1,1.286]
[1757441578592,11.288,4282.2,4282.1,1.286]
[1757441580458,11.287,4282.2,4282.1,1.286]
[1757441583058,13.62224823,4282.2,4282.1,1.286]
[1757441583272,13.73824823,4282.2,4282.1,1.286]
[1757441583680,11.403,4282.2,4282.1,1.286]
[1757441583873,13.73824823,4282.2,4282.1,1.286]
[1757441585398,11.403,4282.2,4282.1,1.286]
[1757441586608,18.06354823,4282.2,4282.1,0.04]
[1757441586774,2.33567829,4281.5,4281.0,0.4552]
[1757441586981,2.33567829,4281.5,4280.8,0.025]
[1757441586982,2.33563003,4281.5,4281.4,0.2969]
[1757441587272,15.01935899,4281.5,4281.4,0.2969]
[1757441587485,2.33595739,4280.9,4280.8,0.025]
[1757441587656,13.22768635,4280.9,4280.8,0.025]
[1757441587862,13.22768635,4280.9,4280.8,0.3219]
[1757441588281,13.22768635,4280.9,4280.8,0.7771]
[1757441589322,13.22768635,4280.9,4280.8,0.3219]
[1757441589529,13.22768635,4280.9,4280.8,0.7771]
[1757441591435,13.22768635,4280.9,4280.8,0.3219]
[1757441592127,13.22768635,4280.9,4280.8,0.7771]
[1757441592928,3.892,4280.9,4280.8,0.7771]
[1757441593134,3.892,4280.9,4280.8,1.2441]
[1757441593300,6.22795739,4280.9,4280.8,1.2441]
[1757441593698,3.892,4280.9,4280.8,1.2441]
[1757441594131,3.892,4280.9,4280.8,1.36851]
[1757441595422,3.892,4280.9,4280.8,3.70452196]
[1757441596115,3.892,4280.9,4280.8,7.49652196]
[1757441596739,3.892,4280.9,4280.8,7.61252196]
[1757441598802,8.05526346,4282.2,4280.8,7.61252196]
[1757441598803,0.116,4282.2,4281.3,2.3356935]
[1757441599005,0.04,4282.9,4282.1,0.2969]
[1757441599198,0.04,4282.9,4282.2,0.94555248]
[1757441599458,0.04,4282.9,4282.1,0.2969]
[1757441599459,0.04,4282.9,4282.8,0.2969]
[1757441599603,0.04,4282.9,4282.8,3.55402107]
[1757441599802,0.04,4282.9,4282.8,0.2969]
[1757441600244,0.04,4282.9,4282.8,0.7521]
[1757441600539,0.04,4282.9,4282.8,1.2191]
[1757441600743,0.04,4282.9,4282.8,0.7521]
[1757441605366,0.04,4282.9,4282.8,3.08702107]
[1757441605566,0.04,4282.9,4282.8,0.7521]
[1757441605768,0.04,4282.9,4282.8,3.08702107]
[1757441606131,0.04,4282.9,4282.8,4.14293028]
[1757441606939,0.041,4282.9,4282.8,7.95827949]
[1757441607173,0.041,4282.9,4282.8,7.93493028]
[1757441607375,0.025,4283.8,4283.7,6.12643051]
[1757441607532,0.025,4283.8,4283.7,8.19162439]
[1757441608075,0.026,4283.8,4283.7,8.19162439]
[1757441608432,0.026,4283.8,4283.7,8.28501001]
[1757441608863,0.026,4283.8,4283.7,6.57081001]
[1757441609042,0.026,4283.8,4283.7,5.72471613]
[1757441609232,0.026,4283.8,4283.7,6.17991613]
[1757441609428,0.026,4283.8,4283.7,6.20253051]
[1757441609669,0.026,4283.8,4283.7,5.74733051]
[1757441609871,0.026,4283.8,4283.7,6.20253051]
[1757441610669,0.026,4283.8,4283.7,7.05623648]
[1757441611472,0.026,4283.8,4283.7,3.116]
[1757441611673,0.026,4283.8,4283.7,5.76563051]
[1757441614050,0.026,4283.8,4283.7,6.20833051]
[1757441614454,0.026,4283.8,4283.7,6.68343051]
[1757441615275,0.026,4283.8,4283.7,6.20833051]
[1757441615476,0.026,4283.8,4283.7,7.06261681]
[1757441615672,0.026,4283.8,4283.7,7.53771681]
[1757441616554,0.026,4283.8,4283.7,7.06261681]
[1757441620704,0.026,4283.8,4283.7,7.53771681]
[1757441621205,0.026,4283.8,4283.7,7.06261681]
[1757441622072,0.026,4283.8,4283.7,6.61991681]
[1757441622901,0.3216,4283.8,4283.7,5.45043051]
[1757441624702,0.026,4283.8,4283.7,5.45043051]
[1757441625669,0.026,4283.8,4283.7,5.76563051]
[1757441626311,0.026,4283.8,4283.7,5.45043051]
[1757441626974,0.3216,4283.8,4283.7,5.45043051]
[1757441628609,1.2676,4283.8,4283.7,3.116]
[1757441628909,1.39856,4283.8,4283.7,5.33443051]
[1757441629114,1.2676,4283.8,4283.7,5.33443051]
[1757441633203,0.026,4283.8,4283.7,5.33443051]
[1757441633508,0.026,4283.8,4283.7,5.64963051]
[1757441634110,0.026,4283.8,4283.7,5.33443051]
[1757441634314,0.3216,4283.8,4283.7,5.33443051]
[1757441634622,0.026,4283.8,4283.7,5.76563051]
[1757441635114,0.026,4283.8,4283.7,5.45043051]
[1757441635412,0.3216,4283.8,4283.7,5.45043051]
[1757441636719,0.026,4283.8,4283.7,5.45043051]
[1757441636905,0.026,4283.8,4283.7,5.76563051]
[1757441637821,0.026,4283.8,4283.7,6.70078199]
[1757441638009,0.026,4283.8,4283.7,7.14348199]
[1757441639594,0.026,4283.8,4283.7,6.70078199]
[1757441640100,0.8086,4283.8,4283.7,5.45043051]
[1757441640295,1.2676,4283.8,4283.7,5.45043051]
[1757441640703,0.8086,4283.8,4283.7,5.45043051]
[1757441642433,0.3216,4283.8,4283.7,5.45043051]
[1757441642735,0.026,4283.8,4283.7,5.45043051]
[1757441643753,0.3373,4283.8,4283.7,5.45043051]
[1757441643910,0.026,4283.8,4283.7,5.45043051]
[1757441647717,0.3373,4283.8,4283.7,5.45043051]
[1757441647946,0.026,4283.8,4283.7,5.45043051]
[1757441648467,0.026,4283.8,4283.7,5.73573051]
[1757441649248,0.026,4283.8,4283.7,6.98708298]
[1757441650174,0.026,4283.8,4283.7,5.73573051]
[1757441650372,0.026,4283.8,4283.7,6.98708298]
[1757441650969,0.3373,4283.8,4283.7,6.70178298]
[1757441652378,1.255,4283.8,4283.7,4.25135247]
[1757441652677,1.255,4283.8,4283.7,3.0]
[1757441652877,1.255,4283.8,4283.7,5.33443051]
[1757441653696,0.8157,4283.8,4283.7,5.33443051]
[1757441655692,0.3373,4283.8,4283.7,5.33443051]
[1757441656266,0.026,4283.8,4283.7,5.33443051]
[1757441658305,0.026,4283.8,4283.7,5.61973051]
[1757441658509,0.026,4283.8,4283.7,6.98708298]
[1757441658910,0.3373,4283.8,4283.7,6.70178298]
[1757441661510,0.3373,4283.8,4283.7,5.45043051]
[1757441661707,0.3373,4283.8,4283.7,3.116]
[1757441662011,0.3373,4283.8,4283.7,5.45043051]
[1757441663504,4.2273,4283.8,4283.7,5.45043051]
[1757441664334,3.916,4283.8,4283.7,5.73573051]
[1757441665422,3.916,4283.8,4283.7,6.98708298]
[1757441666331,0.026,4283.8,4283.7,6.98708298]
[1757441666552,0.026,4283.8,4283.7,8.42812095]
[1757441667031,0.026,4283.8,4283.7,12.31812095]
[1757441667609,0.001,4284.1,4283.8,6.12637602]
[1757441667810,0.001,4284.1,4284.0,4.79384065]
[1757441668023,0.001,4284.1,4284.0,6.71450873]
[1757441668331,0.001,4284.1,4284.0,8.29433512]
[1757441669128,0.001,4284.1,4284.0,9.9708205]
[1757441670537,0.001,4284.1,4284.0,8.29433512]
[1757441671836,0.001,4284.1,4284.0,9.08633512]
[1757441675301,0.001,4284.1,4284.0,10.75764949]
[1757441677346,0.001,4284.1,4284.0,10.97363512]
[1757441677528,0.001,4284.1,4284.0,7.38143512]
[1757441677732,0.001,4284.1,4284.0,8.17343512]
[1757441679361,0.001,4284.1,4284.0,8.61403512]
[1757441684174,0.001,4284.6,4284.5,3.12599463]
[1757441684333,0.001,4284.6,4284.5,10.03933457]
[1757441684672,0.001,4284.6,4284.5,11.34239463]
[1757441685370,0.001,4284.6,4284.5,10.86839463]
[1757441686174,0.001,4284.6,4284.5,10.42779463]
[1757441686376,0.001,4284.6,4284.5,11.42265888]
[1757441686740,0.001,4284.6,4284.5,11.86325888]
[1757441688091,0.3174,4284.6,4284.5,6.44485888]
[1757441688273,1.251,4284.6,4284.5,6.70230854]
[1757441688574,1.251,4284.6,4284.5,2.44999463]
[1757441692461,1.251,4284.6,4284.5,3.70230854]
[1757441694382,1.251,4284.6,4284.5,2.44999463]
[1757441696458,0.4677,4284.6,4284.5,2.44999463]
[1757441696657,0.3174,4284.6,4284.5,3.41907199]
[1757441698791,0.3174,4284.6,4284.5,3.39573205]
[1757441699893,0.7841,4284.6,4284.5,3.39573205]
[1757441700268,1.251,4284.6,4284.5,3.39573205]
[1757441700471,1.251,4284.6,4284.5,2.44999463]
[1757441701396,0.001,4284.6,4284.5,2.44999463]
[1757441701807,0.3098,4284.6,4284.5,2.44999463]
[1757441701964,0.78,4284.6,4284.5,2.44999463]
[1757441703012,0.001,4284.6,4284.5,2.44999463]
[1757441703309,0.001,4284.6,4284.5,3.78473205]
[1757441704660,0.3098,4284.6,4284.5,3.78473205]
[1757441704976,0.78,4284.6,4284.5,3.78473205]
[1757441705661,0.001,4284.6,4284.5,4.09497199]
[1757441706099,0.001,4284.6,4284.5,3.78473205]
[1757441706610,0.78,4284.6,4284.5,3.78473205]
[1757441707166,1.2226,4284.6,4284.5,3.78473205]
[1757441707367,1.2226,4284.6,4284.5,2.44999463]
[1757441707578,1.2226,4284.6,4284.5,0.116]
[1757441707781,1.2226,4284.6,4284.5,1.37305356]
[1757441708001,1.2226,4284.6,4284.5,2.44999463]
[1757441708304,1.2226,4284.6,4284.5,0.116]
[1757441708470,1.35156,4284.6,4284.3,0.002]
[1757441708670,1.35156,4284.6,4284.3,2.33608484]
[1757441708878,0.9128,4284.5,4284.4,2.33403481]
[1757441709276,1.2216,4284.5,4284.4,2.33403481]
[1757441709659,0.001,4284.6,4284.4,2.73693481]
[1757441709859,0.001,4284.6,4284.5,5.35733457]
[1757441710063,0.001,4284.6,4284.5,6.24199463]
[1757441710303,0.001,4284.6,4284.5,6.97959463]
[1757441710501,0.001,4284.6,4284.5,8.29903474]
[1757441711966,0.001,4284.6,4284.5,8.20327423]
[1757441715901,0.3098,4284.6,4284.5,7.91637423]
[1757441716103,0.78,4284.6,4284.5,7.91637423]
[1757441716509,0.001,4284.6,4284.5,8.20327423]
[1757441717006,0.001,4284.6,4284.5,8.65397423]
[1757441719414,0.001,4284.6,4284.5,8.20327423]
[1757441719626,0.001,4285.0,4284.9,2.33377675]
[1757441719957,0.001,4285.0,4284.9,11.85965052]
[1757441720104,0.001,4285.0,4284.9,12.14655052]
[1757441720802,0.001,4285.0,4284.9,12.27735863]
[1757441721328,0.001,4285.0,4284.9,8.38835863]
[1757441721528,0.001,4285.0,4284.9,10.6024511]
[1757441721720,0.001,4285.0,4284.9,10.60242133]
[1757441723267,0.001,4285.0,4284.9,6.71342133]
[1757441723540,0.001,4285.0,4284.9,10.60142133]
[1757441724233,0.001,4285.0,4284.9,11.05212133]
[1757441724938,0.001,4285.0,4284.9,10.60142133]
[1757441725632,0.001,4285.0,4284.9,11.05212133]
[1757441726244,0.001,4285.0,4284.9,10.60142133]
[1757441726813,0.001,4285.0,4284.9,10.60042133]
[1757441727313,0.001,4285.0,4284.9,11.05112133]
[1757441729746,0.001,4285.0,4284.9,12.33442133]
[1757441731535,0.001,4285.0,4284.9,12.42776706]
[1757441734629,0.001,4285.0,4284.9,11.48376706]
[1757441734827,0.001,4285.0,4284.9,13.15493148]
[1757441736350,0.001,4285.0,4284.9,13.61593148]
[1757441737192,0.001,4285.0,4284.9,14.10473148]
[1757441737816,0.001,4285.0,4284.9,13.61593148]
[1757441738487,0.001,4285.0,4284.9,11.94476706]
[1757441741857,0.001,4285.5,4285.0,6.12572228]
[1757441742069,0.001,4285.5,4285.0,9.59104713]
[1757441742269,0.001,4285.5,4285.0,8.21953812]
[1757441742488,0.001,4285.5,4285.0,8.91963111]
[1757441743307,0.001,4285.5,4285.0,11.80073812]
[1757441743308,1.2067,4285.1,4285.0,11.80073812]
[1757441743508,1.2067,4285.1,4285.0,13.47450934]
[1757441743813,1.2067,4285.1,4285.0,13.567859]
[1757441743981,1.2067,4285.1,4285.0,13.56784497]
[1757441744185,0.4529,4285.4,4285.0,11.23412269]
[1757441744410,0.001,4285.5,4285.4,3.24150445]
[1757441744568,0.001,4285.5,4285.4,3.37226876]
[1757441744773,0.3007,4285.5,4285.4,3.37226876]
[1757441745428,0.001,4285.5,4285.4,3.37226876]
[1757441745634,0.001,4285.5,4285.4,3.3956038]
[1757441745777,0.001,4285.5,4285.4,5.44769688]
[1757441745976,0.001,4285.5,4285.4,5.88536184]
[1757441746474,0.4541,4286.2,4286.0,2.33317778]
[1757441746696,0.001,4286.2,4286.1,3.39521889]
[1757441746910,0.001,4286.2,4286.1,4.35635856]
[1757441747084,0.3007,4286.2,4286.1,4.35635856]
[1757441747693,0.3007,4286.2,4286.1,4.33302733]
[1757441747888,0.3007,4286.2,4286.1,3.37188766]
[1757441748291,0.001,4286.2,4286.1,3.37188766]
[1757441748510,0.3007,4286.2,4286.1,3.37188766]
[1757441748721,0.7536,4286.2,4286.1,3.37188766]
[1757441748921,1.2067,4286.2,4286.1,3.37188766]
[1757441750399,1.2067,4286.2,4286.1,2.57988766]
[1757441751732,1.2067,4286.2,4286.1,3.83557545]
[1757441754036,0.7538,4286.2,4286.1,4.65090668]
[1757441754240,0.7538,4286.2,4286.1,3.37188766]
[1757441755318,0.3007,4286.2,4286.1,3.37188766]
[1757441756041,0.001,4286.2,4286.1,4.5008541]
[1757441757019,0.001,4286.2,4286.1,4.7678541]
[1757441757215,0.001,4286.2,4286.1,5.20552287]
[1757441757442,0.001,4286.2,4286.1,5.69432287]
[1757441758436,0.001,4286.2,4286.1,5.20552287]
[1757441760313,0.001,4286.2,4286.1,4.44272287]
[1757441760848,0.001,4286.2,4286.1,4.74452287]
[1757441761143,0.001,4286.2,4286.1,5.20552287]
[1757441761445,0.001,4286.2,4286.1,4.74452287]
[1757441761607,0.001,4286.2,4286.1,4.44272287]
[1757441761806,0.001,4286.2,4286.1,4.75612287]
[1757441762359,0.001,4286.2,4286.1,5.22242287]
[1757441766519,0.001,4286.2,4286.1,5.67602287]
[1757441766715,0.001,4286.2,4286.1,8.20972287]
[1757441766966,0.025,4286.8,4286.7,2.33279679]
[1757441767117,0.025,4286.8,4286.7,6.47654078]
[1757441767319,0.025,4286.8,4286.7,6.12624078]
[1757441767517,1.3045,4286.8,4286.7,6.60484078]
[1757441768253,1.3045,4286.8,4286.7,5.4635611]
[1757441768545,1.3045,4286.8,4286.7,6.71878968]
[1757441769961,0.8372,4286.8,4286.7,6.71878968]
[1757441770559,0.025,4286.8,4286.7,6.5689611]
[1757441770740,0.025,4286.8,4286.7,6.2555611]
[1757441770941,0.809,4286.8,4286.7,7.54933441]
[1757441771146,1.3045,4286.8,4286.7,8.80363052]
[1757441772889,0.3417,4286.8,4286.7,8.80363052]
[1757441773396,0.3417,4286.8,4286.7,8.80342336]
[1757441774243,0.3417,4286.8,4286.7,7.54933441]
[1757441774780,0.025,4286.8,4286.7,7.54933441]
[1757441775572,0.025,4286.8,4286.7,7.86273441]
[1757441775776,0.025,4286.8,4286.7,8.32903441]
[1757441775977,0.025,4286.8,4286.7,8.78263441]
[1757441776369,0.025,4286.8,4286.7,12.66863441]
[1757441776578,1e-08,4286.8,4286.7,12.66863441]
[1757441777184,1e-08,4286.9,4286.8,6.12474237]
[1757441777370,1e-08,4286.9,4286.8,9.69879769]
[1757441777597,1e-08,4286.9,4286.8,10.01219769]
[1757441778206,1e-08,4286.9,4286.8,8.341616]
[1757441778394,1e-08,4286.9,4286.8,10.12778778]
[1757441779404,1e-08,4286.9,4286.8,8.457616]
[1757441781424,1e-08,4286.9,4286.8,8.004016]
[1757441781576,0.00100001,4286.9,4286.8,7.537716]
[1757441781915,0.00100001,4286.9,4286.8,7.224316]
[1757441782216,0.00100001,4286.9,4286.8,11.434716]
[1757441782412,0.00100001,4286.9,4286.8,11.901016]
[1757441782825,0.00100001,4286.9,4286.8,11.434716]
[1757441783119,0.00100001,4286.9,4286.8,11.121316]
[1757441783424,0.31770001,4286.9,4286.8,7.224316]
[1757441783623,0.31770001,4286.9,4286.8,2.46350668]
[1757441783624,1.28050001,4286.9,4286.8,2.46350668]
[1757441789118,0.81320001,4286.9,4286.8,2.46350668]
[1757441789489,0.31770001,4286.9,4286.8,2.46350668]
[1757441790840,0.81320001,4286.9,4286.8,2.46350668]
[1757441791990,1.27780001,4286.9,4286.8,2.46350668]
[1757441793707,1.27780001,4286.9,4286.8,2.57950668]
[1757441794404,0.31770001,4286.9,4286.8,2.57950668]
[1757441794726,0.31770001,4286.9,4286.8,2.5793992]
[1757441795434,0.77680001,4286.9,4286.8,2.5793992]
[1757441795930,1.24140001,4286.9,4286.8,2.5793992]
[1757441796627,0.77680001,4286.9,4286.8,2.5793992]
[1757441797832,1.24140001,4286.9,4286.8,2.5793992]
[1757441799019,1.75544001,4286.9,4286.8,0.24665683]
[1757441799213,1.75544001,4286.9,4286.8,0.13065683]
[1757441799450,1.75544001,4286.9,4286.6,0.002]